fUSD/lending_fUSD_20260517
["ID","MTS","AMOUNT","RATE_DAILY","PERIOD"]
[422520354,1779025837000,-1381.56113524,0.00011763,2]
[422520355,1779025837000,-117.9005275,0.00011763,2]
[422520356,1779025837000,-1887.80242846,0.00011763,2]
[422520357,1779025837000,-79999.99999997,0.00011763,2]
[422520368,1779025839000,-316.7151158,0.00011763,2]
[422520369,1779025839000,-2415694.06433639,0.00011763,2]
[422520371,1779025839000,-1198.20846186,0.00012536,2]
[422520370,1779025839000,-763844.39210837,0.00012536,2]
[422520377,1779025840000,-1397.74019105,0.00012536,2]
[422520373,1779025840000,-8011.23226826,0.00012536,2]
[422520372,1779025840000,-14495.04845492,0.00012536,2]
[422520376,1779025840000,-2990.78474684,0.00012536,2]
[422520390,1779025842000,-5636.86794827,0.00012536,2]
[422520389,1779025842000,-434.15316061,0.00012536,2]
[422520388,1779025842000,-628.87665091,0.00012536,2]
[422520387,1779025842000,-856.75015272,0.00012536,2]
[422520386,1779025842000,-230.00040969,0.00012536,2]
[422520394,1779025845000,-472.82577681,0.00012536,2]
[422520395,1779025845000,-1218.0,0.00012536,2]
[422520396,1779025846000,-1116.67322409,0.00012536,2]
[422520412,1779025929000,3031.154854,7.945e-05,2]
[422520415,1779026012000,-150.0,0.00011323,2]
[422520418,1779026159000,-1012.12,0.00011539,2]
[422520417,1779026159000,-150.0,0.00011446,2]
[422520419,1779026159000,-150.0,0.00011654,2]
[422520421,1779026159000,-213.94691902,0.00011687,2]
[422520420,1779026159000,-500.0,0.00011673,2]
[422520422,1779026159000,-152.0,0.00011769,2]
[422520425,1779026159000,-150.0,0.00011786,2]
[422520424,1779026159000,-2000.0,0.00011776,2]
[422520426,1779026159000,-538.7241,0.00011852,2]
[422520427,1779026159000,-500.0,0.00011947,2]
[422520428,1779026159000,-150.0,0.00011951,2]
[422520430,1779026159000,-25864.73947428,0.00011952,2]
[422520423,1779026159000,-2418.4695067,0.00011776,2]
[422520429,1779026159000,-1200.0,0.00011951,2]
[422520431,1779026166000,259.10064493,0.00029696,120]
[422520434,1779026262000,-4474.91678066,0.00011726,2]
[422520435,1779026262000,503.13764112,0.00030137,120]
[422520436,1779026274000,220.23494732,0.00011654,2]
[422520437,1779026302000,163.36008427,0.00029702,120]
[422520439,1779026325000,-3299.47321934,0.00011726,2]
[422520440,1779026325000,-1321.64,0.00011754,2]
[422520442,1779026379000,-1200.0,0.00011851,2]
[422520441,1779026379000,-300.0,0.00011851,2]
[422520443,1779026379000,-2500.0,0.00011852,2]
[422520445,1779026433000,-1200.0,0.00011851,2]
[422520449,1779026491000,150.6,6.596e-05,2]
[422520448,1779026491000,150.6,6.278e-05,2]
[422520447,1779026491000,72.55926879,5.96e-05,2]
[422520446,1779026491000,78.04073121,5.96e-05,2]
[422520454,1779026492000,150.6,8.186e-05,2]
[422520453,1779026492000,150.6,7.868e-05,2]
[422520452,1779026492000,150.6,7.55e-05,2]
[422520451,1779026492000,150.6,7.232e-05,2]
[422520450,1779026492000,150.6,6.914e-05,2]
[422520456,1779026493000,150.6,8.823e-05,2]
[422520455,1779026493000,150.6,8.504e-05,2]
[422520458,1779026493000,150.6,9.459e-05,2]
[422520457,1779026493000,150.6,9.141e-05,2]
[422520460,1779026494000,150.6,0.00010095,2]
[422520459,1779026494000,150.6,9.777e-05,2]
[422520461,1779026551000,7958.85,8e-05,2]
[422520462,1779026657000,523.72,0.00030082,120]
[422520463,1779026681000,-150.6,0.00010413,2]
[422520464,1779026698000,500.0,0.00030136,120]
[422520465,1779026724000,500.0,0.0003,120]
[422520468,1779026736000,500.0,0.00030136,120]
[422520470,1779026769000,-171.40243559,0.00010413,2]
[422520473,1779026769000,-12128.59756441,0.000107,2]
[422520472,1779026769000,-300.0,0.00010699,2]
[422520471,1779026769000,-150.0,0.00010699,2]
[422520475,1779026794000,1037.0,0.0003,120]
[422520477,1779026831000,10000.0,0.00030137,120]
[422520478,1779026840000,1500.0,0.000116,4]
[422520479,1779026842000,3000.0,0.000117,4]
[422520480,1779026844000,4600.0,0.000118,4]
[422520481,1779026846000,1333.0,0.00030137,120]
[422520482,1779026846000,6100.0,0.000119,4]
[422520483,1779026869000,-300.0,0.00010699,2]
[422520484,1779026876000,466.37106972,0.00030136,120]
[422520486,1779026940000,1000.0,0.00030136,120]
[422520488,1779026948000,-45707.34346524,0.000107,2]
[422520489,1779026948000,-150.6,0.00010731,2]
[422520487,1779026948000,-300.0,0.00010699,2]
[422520490,1779026948000,-217.0,0.00010806,2]
[422520491,1779026948000,-2000.0,0.00010814,2]
[422520492,1779026948000,-437.71,0.00011031,2]
[422520494,1779026948000,-437.71,0.00011307,2]
[422520495,1779026948000,-150.6,0.00011367,2]
[422520496,1779026948000,-2859.79791144,0.000114,2]
[422520497,1779026948000,-150.0,0.00011453,2]
[422520498,1779026948000,-300.36472598,0.00011454,2]
[422520499,1779026948000,-276.69400433,0.00011454,2]
[422520500,1779026948000,-252.42,0.00011454,2]
[422520501,1779026948000,-368.16749042,0.00011454,2]
[422520493,1779026948000,-150.6,0.00011049,2]
[422520502,1779026949000,-437.71,0.00011583,2]
[422520503,1779026949000,-150.6,0.00011686,2]
[422520504,1779026949000,-4157.6136545,0.0001171,2]
[422520509,1779026949000,-705672.58732734,0.00011799,2]
[422520505,1779026949000,-200.0,0.00011715,2]
[422520507,1779026949000,-4934.38334728,0.00011769,2]
[422520508,1779026949000,-268.09807347,0.00011769,2]
[422520506,1779026949000,-420.0,0.00011761,2]
[422520511,1779026991000,541.025,0.00030137,120]
[422520536,1779027031000,-250.0,0.00011471,2]
[422520535,1779027031000,-2832.95923969,0.00011454,2]
[422520533,1779027031000,-5865.75645904,0.00011454,2]
[422520531,1779027031000,-725.86,0.00011232,2]
[422520532,1779027031000,-2798.68773875,0.00011454,2]
[422520534,1779027031000,-166.22900262,0.00011454,2]
[422520530,1779027031000,-434.64,0.00011099,2]
[422520537,1779027031000,-250.0,0.0001167,2]
[422520539,1779027031000,-208.48490792,0.0001171,2]
[422520538,1779027031000,-2309.7370275,0.0001171,2]
[422520545,1779027031000,-42852.10470961,0.00011799,2]
[422520541,1779027031000,-300.0,0.00011798,2]
[422520543,1779027031000,-442151.07985204,0.00011799,2]
[422520542,1779027031000,-1200.0,0.00011798,2]
[422520540,1779027031000,-11023.37924576,0.00011711,2]
[422520544,1779027031000,-8204.9847943,0.00011799,2]
[422520546,1779027031000,-558.55435016,0.00011799,2]
[422520557,1779027037000,-317.0,0.00011799,2]
[422520556,1779027037000,-4157.5475158,0.00011799,2]
[422520595,1779027040000,-11921.19548554,0.00011799,2]
[422520599,1779027040000,-1139.781,0.00011851,2]
[422520597,1779027040000,-226.94,0.00011811,2]
[422520601,1779027040000,-156.165,0.00011851,2]
[422520607,1779027040000,-437.71,0.00011859,2]
[422520605,1779027040000,-2500.0,0.00011852,2]
[422520588,1779027040000,-980.29825193,0.00011799,2]
[422520603,1779027040000,-30683.3746,0.00011852,2]
[422520571,1779027040000,-719.300035,0.00011799,2]
[422520566,1779027040000,-2257.22840401,0.00011799,2]
[422520568,1779027040000,-6959.96205193,0.00011799,2]
[422520569,1779027040000,-843.88594598,0.00011799,2]
[422520567,1779027040000,-2458.68225408,0.00011799,2]
[422520611,1779027040000,-42368.80186489,0.00011899,2]
[422520565,1779027040000,-449.83745966,0.00011799,2]
[422520564,1779027040000,-17759.56151505,0.00011799,2]
[422520562,1779027040000,-128870.28754269,0.00011799,2]
[422520563,1779027040000,-92755.77173928,0.00011799,2]
[422520561,1779027040000,-6032.918586,0.00011799,2]
[422520560,1779027040000,-7925.0,0.00011799,2]
[422520570,1779027040000,-1161.51421182,0.00011799,2]
[422520609,1779027040000,-1001.59004875,0.00011899,2]
[422520592,1779027040000,-1513.21,0.00011799,2]
[422520615,1779027040000,-504.0,0.00011918,2]
[422520613,1779027040000,-88290.11656383,0.000119,2]
[422520657,1779027040000,-250.0,0.00012355,2]
[422520655,1779027040000,-500.0,0.00012355,2]
[422520653,1779027040000,-193.0,0.00012355,2]
[422520651,1779027040000,-5000.0,0.00012336,2]
[422520649,1779027040000,-312.82588138,0.00012336,2]
[422520647,1779027040000,-1396.60350248,0.00012336,2]
[422520631,1779027040000,-437.71,0.00012134,2]
[422520629,1779027040000,-4157.61365449,0.00012064,2]
[422520633,1779027040000,-2000.0,0.00012166,2]
[422520627,1779027040000,-154.05302279,0.00012051,2]
[422520590,1779027040000,-13477.48796778,0.00011799,2]
[422520635,1779027040000,-151.0,0.00012221,2]
[422520619,1779027040000,-207.98226267,0.00011942,2]
[422520621,1779027040000,-81066.4124691,0.00011945,2]
[422520623,1779027040000,-500.0,0.00011947,2]
[422520625,1779027040000,-261887.96301752,0.00011952,2]
[422520617,1779027040000,-500.0,0.00011918,2]
[422520645,1779027040000,-8195.62249016,0.00012336,2]
[422520637,1779027040000,-94116.99719962,0.0001225,2]
[422520641,1779027040000,-1139.68845768,0.00012336,2]
[422520643,1779027040000,-154.05302278,0.00012336,2]
[422520639,1779027040000,-523.72,0.00012329,2]
[422520663,1779027041000,-4157.61365449,0.00012419,2]
[422520669,1779027041000,-151.0,0.00012436,2]
[422520668,1779027041000,-151.0,0.00012436,2]
[422520659,1779027041000,-11023.37924567,0.00012377,2]
[422520665,1779027041000,-500.0,0.00012435,2]
[422520672,1779027041000,-105286.47966453,0.00012436,2]
[422520676,1779027041000,-78999.99999998,0.00012436,2]
[422520678,1779027041000,-265.1286,0.00012436,2]
[422520680,1779027041000,-645.31994166,0.00012436,2]
[422520661,1779027041000,-500.0,0.00012411,2]
[422520674,1779027041000,-700.0,0.00012436,2]
[422520713,1779027042000,-5608.54985256,0.00012436,2]
[422520711,1779027042000,-1071.18168082,0.00012436,2]
[422520712,1779027042000,-643.04124395,0.00012436,2]
[422520709,1779027042000,-7839.97237987,0.00012436,2]
[422520710,1779027042000,-436.96,0.00012436,2]
[422520714,1779027043000,-325.58015431,0.00012436,2]
[422520715,1779027043000,-44512.99815066,0.00012436,2]
[422520716,1779027043000,-5695.95824748,0.00012436,2]
[422520718,1779027043000,-1578.7588942,0.00012436,2]
[422520717,1779027043000,-386.3724174,0.00012436,2]
[422520728,1779027046000,-15943.61045705,0.00012436,2]
[422520727,1779027046000,-7950.0,0.00012436,2]
[422520729,1779027046000,-362.424535,0.00012436,2]
[422520730,1779027046000,-6952.37094384,0.00012436,2]
[422520731,1779027046000,-1626.85565591,0.00012436,2]
[422520732,1779027046000,-981.44,0.00012436,2]
[422520733,1779027046000,-4225.313,0.00012436,2]
[422520734,1779027046000,-1564.62346245,0.00012436,2]
[422521009,1779027068000,-2247.7970835,0.00012109,2]
[422521011,1779027069000,-1057601.2029165,0.00012436,2]
[422521010,1779027069000,-151.0,0.00012433,2]
[422521012,1779027090000,-217.0,0.00012229,2]
[422521013,1779027101000,-1495.0,0.00012322,2]
[422521014,1779027117000,-4474.91678066,0.00012322,2]
[422521020,1779027286000,375.82,7.178e-05,2]
[422521019,1779027286000,375.82,6.849e-05,2]
[422521018,1779027286000,365.02926879,6.519e-05,2]
[422521017,1779027286000,10.79073121,6.519e-05,2]
[422521016,1779027286000,-1589.933,0.00011378,2]
[422521021,1779027287000,375.82,7.508e-05,2]
[422521023,1779027287000,7898.68,0.00030137,120]
[422521022,1779027287000,375.82,7.837e-05,2]
[422521024,1779027324000,994.94756432,0.00030137,120]
[422521025,1779027348000,1000.0,0.00030137,120]
[422521026,1779027366000,1000.0000009,0.00030137,120]
[422521027,1779027369000,152.0,9.646e-05,2]
[422521028,1779027413000,170.06,8.902e-05,2]
[422521029,1779027474000,-250.0,0.00010899,2]
[422521030,1779027510000,495.0,0.00030137,120]
[422521032,1779027632000,639.28,0.00030137,120]
[422521033,1779027676000,-856.45,0.00010711,2]
[422521035,1779027723000,-2102.81,0.00010772,2]
[422521036,1779027915000,345.0,0.00030137,120]
[422521037,1779027944000,3000.0,0.00030137,120]
[422521039,1779027966000,2988.2,0.00030137,120]
[422521040,1779027980000,-2000.0,0.00010758,2]
[422521044,1779027999000,-52.51792014,0.00010776,2]
[422521043,1779027999000,-215.0785988,0.00010758,2]
[422521045,1779028015000,1000.0,0.00010573,2]
[422521046,1779028030000,800.0,0.000115,4]
[422521047,1779028032000,1600.0,0.000116,4]
[422521048,1779028034000,2500.0,0.000117,4]
[422521049,1779028036000,3300.0,0.000118,4]
[422521050,1779028038000,4100.0,0.000119,4]
[422521052,1779028073000,200.0,0.00010557,2]
[422521053,1779028084000,163.68,0.0001057,2]
[422521055,1779028140000,1000.0,0.00030136,120]
[422521056,1779028171000,-160.0,0.00010811,2]
[422521071,1779028231000,-150.0,0.00010959,2]
[422521066,1779028231000,-319.9194693,0.00010859,2]
[422521070,1779028231000,-150.0,0.00010959,2]
[422521072,1779028231000,-856.45,0.00010978,2]
[422521074,1779028231000,-160.0,0.00011087,2]
[422521076,1779028231000,-160.0,0.00011197,2]
[422521073,1779028231000,-215.0785988,0.00010987,2]
[422521069,1779028231000,-391.46230713,0.00010859,2]
[422521080,1779028231000,-160.0,0.00011307,2]
[422521075,1779028231000,-176.31181882,0.00011136,2]
[422521079,1779028231000,-176.3118188,0.00011278,2]
[422521077,1779028231000,-226.94,0.00011236,2]
[422521078,1779028231000,-856.45,0.00011246,2]
[422521082,1779028231000,-176.3118188,0.00011419,2]
[422521081,1779028231000,-160.0,0.00011416,2]
[422521083,1779028231000,-1380.39,0.00011427,2]
[422521103,1779028232000,-500.0,0.00011609,2]
[422521104,1779028232000,-500.0,0.00011609,2]
[422521108,1779028232000,-500.0,0.00011609,2]
[422521107,1779028232000,-206.55502416,0.00011609,2]
[422521111,1779028232000,-500.0,0.00011609,2]
[422521112,1779028232000,-255.11823033,0.00011609,2]
[422521117,1779028232000,-500.0,0.00011609,2]
[422521113,1779028232000,-500.0,0.00011609,2]
[422521116,1779028232000,-500.0,0.00011609,2]
[422521110,1779028232000,-500.0,0.00011609,2]
[422521115,1779028232000,-500.0,0.00011609,2]
[422521118,1779028232000,-500.0,0.00011609,2]
[422521128,1779028232000,-250.0,0.00011854,2]
[422521129,1779028232000,-250.0,0.00011854,2]
[422521105,1779028232000,-500.0,0.00011609,2]
[422521114,1779028232000,-598.0680521,0.00011609,2]
[422521106,1779028232000,-500.0,0.00011609,2]
[422521091,1779028232000,-856.45,0.00011514,2]
[422521099,1779028232000,-154.05302278,0.00011531,2]
[422521084,1779028232000,-674.59154451,0.0001143,2]
[422521086,1779028232000,-300.0,0.0001143,2]
[422521087,1779028232000,-154.05302279,0.00011431,2]
[422521088,1779028232000,-5918.50636352,0.00011431,2]
[422521085,1779028232000,-525.40845549,0.0001143,2]
[422521089,1779028232000,-2500.0,0.00011508,2]
[422521094,1779028232000,-15170.75031255,0.00011515,2]
[422521093,1779028232000,-64045.58215821,0.00011515,2]
[422521120,1779028232000,-343.98148959,0.00011631,2]
[422521092,1779028232000,-150.0,0.00011514,2]
[422521090,1779028232000,-5000.0,0.0001151,2]
[422521095,1779028232000,-1103.5,0.00011515,2]
[422521097,1779028232000,-5918.5063635,0.00011519,2]
[422521096,1779028232000,-92673.09752924,0.00011515,2]
[422521100,1779028232000,-2277.62198398,0.00011531,2]
[422521098,1779028232000,-160.0,0.00011526,2]
[422521101,1779028232000,-1139.68845768,0.00011599,2]
[422521102,1779028232000,-5918.5063635,0.00011607,2]
[422521130,1779028232000,-160.0,0.00011856,2]
[422521109,1779028232000,-500.0,0.00011609,2]
[422521126,1779028232000,-856.45,0.00011782,2]
[422521154,1779028232000,-315.84676468,0.00012221,2]
[422521145,1779028232000,-291.30907859,0.00012212,2]
[422521147,1779028232000,-500.0,0.00012221,2]
[422521151,1779028232000,-500.0,0.00012221,2]
[422521149,1779028232000,-299.04457814,0.00012221,2]
[422521152,1779028232000,-500.0,0.00012221,2]
[422521148,1779028232000,-272.05283759,0.00012221,2]
[422521150,1779028232000,-500.0,0.00012221,2]
[422521156,1779028232000,-375.81059483,0.00012221,2]
[422521155,1779028232000,-500.0,0.00012221,2]
[422521158,1779028232000,-866878.55436533,0.00012222,2]
[422521160,1779028232000,-11262.19762402,0.00012222,2]
[422521159,1779028232000,-88325.81614141,0.00012222,2]
[422521157,1779028232000,-30683.3746,0.00012222,2]
[422521161,1779028232000,-14680.64755417,0.00012222,2]
[422521162,1779028232000,-1000.30473627,0.00012222,2]
[422521119,1779028232000,-500.0,0.00011609,2]
[422521153,1779028232000,-457.56949404,0.00012221,2]
[422521146,1779028232000,-500.0,0.00012221,2]
[422521143,1779028232000,-10934.37297132,0.00012122,2]
[422521131,1779028232000,-5918.5063635,0.0001187,2]
[422521122,1779028232000,-500.0,0.00011685,2]
[422521123,1779028232000,-5918.5063635,0.00011695,2]
[422521124,1779028232000,-300.0,0.000117,2]
[422521127,1779028232000,-5918.5063635,0.00011783,2]
[422521132,1779028232000,-197.48207986,0.00011892,2]
[422521133,1779028232000,-1001.59004875,0.00011899,2]
[422521144,1779028232000,-5918.5063635,0.00012134,2]
[422521125,1779028232000,-160.0,0.00011746,2]
[422521134,1779028232000,-500.0,0.00011947,2]
[422521136,1779028232000,-500.0,0.00011959,2]
[422521141,1779028232000,-162.0,0.00012075,2]
[422521138,1779028232000,-150.0,0.00011985,2]
[422521140,1779028232000,-5918.5063635,0.00012046,2]
[422521137,1779028232000,-160.0,0.00011965,2]
[422521139,1779028232000,-1800.0,0.00012,2]
[422521142,1779028232000,-2000.0,0.00012103,2]
[422521135,1779028232000,-5918.5063635,0.00011958,2]
[422521121,1779028232000,-160.0,0.00011636,2]
[422521169,1779028238000,-3907.18510412,0.00012222,2]
[422521166,1779028238000,-286.399996,0.00012222,2]
[422521171,1779028238000,-8763.62153903,0.00012222,2]
[422521165,1779028238000,-1017.85306195,0.00012222,2]
[422521177,1779028238000,-537.39846376,0.00012222,2]
[422521175,1779028238000,-3012.1020512,0.00012222,2]
[422521187,1779028238000,-717.899995,0.00012222,2]
[422521173,1779028238000,-6515.00461742,0.00012222,2]
[422521214,1779028240000,-1441889.79854047,0.00012222,2]
[422521215,1779028240000,-51205.21620985,0.00012222,2]
[422521216,1779028240000,-2000.0,0.00012222,2]
[422521217,1779028240000,-5918.5063635,0.00012222,2]
[422521218,1779028240000,-1396.60350248,0.00012222,2]
[422521220,1779028240000,-291.30907859,0.00012316,2]
[422521219,1779028240000,-500.0,0.00012233,2]
[422521222,1779028240000,-1841.54272203,0.00012322,2]
[422521221,1779028240000,-72130.91083278,0.00012322,2]
[422521224,1779028240000,-623.51554479,0.00012322,2]
[422521226,1779028240000,-466558.87142779,0.00012322,2]
[422521225,1779028240000,-500.89331875,0.00012322,2]
[422521227,1779028240000,-151.0,0.00012322,2]
[422521229,1779028240000,-300.0,0.00012325,2]
[422521228,1779028240000,-300.0,0.00012325,2]
[422521231,1779028240000,-666.0,0.00012325,2]
[422521237,1779028240000,-308.70435378,0.00012328,2]
[422521233,1779028240000,-269423.9403818,0.00012326,2]
[422521235,1779028240000,-14523.38481324,0.00012328,2]
[422521223,1779028240000,-234000.0,0.00012322,2]
[422521243,1779028246000,-17318.3879,0.00012328,2]
[422521244,1779028246000,-407.97699928,0.00012328,2]
[422521242,1779028246000,-701.9017743,0.00012328,2]
[422521245,1779028246000,-3896.79809258,0.00012328,2]
[422521277,1779028248000,-1540.0,0.00012436,2]
[422521276,1779028248000,-1540.0,0.00012436,2]
[422521275,1779028248000,-1540.0,0.00012436,2]
[422521273,1779028248000,-1540.0,0.00012436,2]
[422521274,1779028248000,-1540.0,0.00012436,2]
[422521271,1779028248000,-1540.0,0.00012436,2]
[422521270,1779028248000,-1540.0,0.00012436,2]
[422521272,1779028248000,-1540.0,0.00012436,2]
[422521269,1779028248000,-1540.0,0.00012436,2]
[422521268,1779028248000,-248.86885667,0.00012435,2]
[422521266,1779028248000,-51.41551866,0.00012435,2]
[422521263,1779028248000,-248.58448134,0.00012435,2]
[422521258,1779028248000,-5665.64464962,0.00012328,2]
[422521260,1779028248000,-174.59,0.00012329,2]
[422521256,1779028248000,-7951.35,0.00012328,2]
[422521278,1779028248000,-1540.0,0.00012436,2]
[422521262,1779028248000,-208.48490792,0.00012385,2]
[422521246,1779028248000,-10920.8841364,0.00012328,2]
[422521267,1779028248000,-417.13114333,0.00012435,2]
[422521279,1779028248000,-1540.0,0.00012436,2]
[422521292,1779028248000,-152.0,0.00012436,2]
[422521283,1779028248000,-1540.0,0.00012436,2]
[422521300,1779028248000,-151.0,0.00012436,2]
[422521299,1779028248000,-151.0,0.00012436,2]
[422521293,1779028248000,-152.0,0.00012436,2]
[422521294,1779028248000,-152.0,0.00012436,2]
[422521291,1779028248000,-1540.0,0.00012436,2]
[422521295,1779028248000,-152.0,0.00012436,2]
[422521290,1779028248000,-1540.0,0.00012436,2]
[422521288,1779028248000,-1540.0,0.00012436,2]
[422521298,1779028248000,-152.0,0.00012436,2]
[422521281,1779028248000,-524.37347859,0.00012436,2]
[422521297,1779028248000,-152.0,0.00012436,2]
[422521280,1779028248000,-1540.0,0.00012436,2]
[422521284,1779028248000,-1540.0,0.00012436,2]
[422521282,1779028248000,-1540.0,0.00012436,2]
[422521296,1779028248000,-152.0,0.00012436,2]
[422521285,1779028248000,-1540.0,0.00012436,2]
[422521287,1779028248000,-1540.0,0.00012436,2]
[422521289,1779028248000,-1540.0,0.00012436,2]
[422521286,1779028248000,-1540.0,0.00012436,2]
[422521343,1779028249000,-1540.0,0.00012436,2]
[422521335,1779028249000,-1540.0,0.00012436,2]
[422521342,1779028249000,-1540.0,0.00012436,2]
[422521341,1779028249000,-1540.0,0.00012436,2]
[422521344,1779028249000,-1540.0,0.00012436,2]
[422521345,1779028249000,-1540.0,0.00012436,2]
[422521352,1779028249000,-1540.0,0.00012436,2]
[422521354,1779028249000,-1540.0,0.00012436,2]
[422521357,1779028249000,-1540.0,0.00012436,2]
[422521346,1779028249000,-1540.0,0.00012436,2]
[422521359,1779028249000,-1540.0,0.00012436,2]
[422521347,1779028249000,-1540.0,0.00012436,2]
[422521358,1779028249000,-1540.0,0.00012436,2]
[422521340,1779028249000,-1540.0,0.00012436,2]
[422521348,1779028249000,-1540.0,0.00012436,2]
[422521350,1779028249000,-1540.0,0.00012436,2]
[422521360,1779028249000,-1540.0,0.00012436,2]
[422521361,1779028249000,-151.0,0.00012436,2]
[422521363,1779028249000,-350.98925485,0.00012536,2]
[422521366,1779028249000,-151.0,0.00012536,2]
[422521368,1779028249000,-1680.0,0.00012573,2]
[422521370,1779028249000,-255.0,0.00012573,2]
[422521362,1779028249000,-500.0,0.00012507,2]
[422521371,1779028249000,-167.37842771,0.00012624,2]
[422521372,1779028249000,-150.0,0.00012705,2]
[422521356,1779028249000,-1540.0,0.00012436,2]
[422521339,1779028249000,-1540.0,0.00012436,2]
[422521338,1779028249000,-1540.0,0.00012436,2]
[422521377,1779028249000,-1380.39,0.00012856,2]
[422521301,1779028249000,-151.0,0.00012436,2]
[422521302,1779028249000,-151.0,0.00012436,2]
[422521306,1779028249000,-293.78355071,0.00012436,2]
[422521310,1779028249000,-151.0,0.00012436,2]
[422521303,1779028249000,-151.0,0.00012436,2]
[422521308,1779028249000,-151.0,0.00012436,2]
[422521305,1779028249000,-151.0,0.00012436,2]
[422521309,1779028249000,-151.0,0.00012436,2]
[422521304,1779028249000,-151.0,0.00012436,2]
[422521307,1779028249000,-151.0,0.00012436,2]
[422521311,1779028249000,-151.0,0.00012436,2]
[422521313,1779028249000,-151.0,0.00012436,2]
[422521324,1779028249000,-152.0,0.00012436,2]
[422521326,1779028249000,-152.0,0.00012436,2]
[422521312,1779028249000,-152.0,0.00012436,2]
[422521314,1779028249000,-152.0,0.00012436,2]
[422521315,1779028249000,-151.0,0.00012436,2]
[422521316,1779028249000,-152.0,0.00012436,2]
[422521318,1779028249000,-152.0,0.00012436,2]
[422521317,1779028249000,-152.0,0.00012436,2]
[422521320,1779028249000,-152.0,0.00012436,2]
[422521322,1779028249000,-152.0,0.00012436,2]
[422521327,1779028249000,-152.0,0.00012436,2]
[422521328,1779028249000,-152.0,0.00012436,2]
[422521329,1779028249000,-259.7261835,0.00012436,2]
[422521337,1779028249000,-1540.0,0.00012436,2]
[422521333,1779028249000,-1540.0,0.00012436,2]
[422521331,1779028249000,-1540.0,0.00012436,2]
[422521378,1779028249000,-275.22,0.00012877,2]
[422521375,1779028249000,-500.0,0.00012781,2]
[422521380,1779028249000,-1984.0,0.00013,3]
[422521413,1779028249000,-892.48,0.00013698,2]
[422521414,1779028249000,-892.48,0.00013698,2]
[422521407,1779028249000,-892.48,0.00013698,2]
[422521382,1779028249000,-500.0,0.00013055,2]
[422521420,1779028249000,-583.1,0.00013698,2]
[422521421,1779028249000,-583.1,0.00013698,2]
[422521427,1779028249000,-583.1,0.00013698,2]
[422521418,1779028249000,-583.1,0.00013698,2]
[422521424,1779028249000,-583.1,0.00013698,2]
[422521419,1779028249000,-583.1,0.00013698,2]
[422521423,1779028249000,-583.1,0.00013698,2]
[422521422,1779028249000,-583.1,0.00013698,2]
[422521428,1779028249000,-500.0,0.00013698,2]
[422521426,1779028249000,-583.1,0.00013698,2]
[422521425,1779028249000,-583.1,0.00013698,2]
[422521440,1779028249000,-500.0,0.00013698,2]
[422521430,1779028249000,-500.0,0.00013698,2]
[422521429,1779028249000,-500.0,0.00013698,2]
[422521432,1779028249000,-500.0,0.00013698,2]
[422521431,1779028249000,-500.0,0.00013698,2]
[422521435,1779028249000,-500.0,0.00013698,2]
[422521433,1779028249000,-500.0,0.00013698,2]
[422521436,1779028249000,-500.0,0.00013698,2]
[422521438,1779028249000,-500.0,0.00013698,2]
[422521434,1779028249000,-500.0,0.00013698,2]
[422521439,1779028249000,-500.0,0.00013698,2]
[422521437,1779028249000,-500.0,0.00013698,2]
[422521408,1779028249000,-892.48,0.00013698,2]
[422521412,1779028249000,-892.48,0.00013698,2]
[422521417,1779028249000,-500.0,0.00013698,2]
[422521409,1779028249000,-892.48,0.00013698,2]